fUSD/lending_fUSD_20250530
["ID","MTS","AMOUNT","RATE_DAILY","PERIOD"]
[363191531,1748619110335,-420.3,0.00024109,2]
[363191532,1748619110344,-420.0,0.00024109,2]
[363191533,1748619110353,-853.41,0.00024109,2]
[363191534,1748619110362,-420.0,0.00024109,2]
[363191535,1748619110371,-420.0,0.00024109,2]
[363191536,1748619110380,-525.07,0.00024109,2]
[363191537,1748619110389,-420.0,0.00024109,2]
[363191538,1748619110398,-502.76,0.00024109,2]
[363191539,1748619110407,-1167.56,0.00024109,2]
[363191540,1748619110416,-769.78,0.00024109,2]
[363191541,1748619110425,-499.23,0.00024109,2]
[363191542,1748619110434,-420.0,0.00024109,2]
[363191543,1748619110443,-531.83,0.00024109,2]
[363191544,1748619110454,-420.0,0.00024109,2]
[363191545,1748619110462,-479.53,0.00024109,2]
[363191546,1748619110472,-753.24,0.00024109,2]
[363191547,1748619110481,-265.73,0.00024109,2]
[363191548,1748619110490,-476.72,0.00024109,2]
[363191549,1748619110500,-420.0,0.00024109,2]
[363191550,1748619110509,-571.1,0.00024109,2]
[363191551,1748619110518,-420.0,0.00024109,2]
[363191552,1748619110528,-908.97,0.00024109,2]
[363191553,1748619110537,-420.0,0.00024109,2]
[363191554,1748619110547,-420.0,0.00024109,2]
[363191555,1748619110557,-420.0,0.00024109,2]
[363191556,1748619110567,-420.0,0.00024109,2]
[363191557,1748619110576,-432.46,0.00024109,2]
[363191558,1748619110585,-420.0,0.00024109,2]
[363191559,1748619110595,-420.0,0.00024109,2]
[363191560,1748619110604,-420.0,0.00024109,2]
[363191561,1748619110614,-420.0,0.00024109,2]
[363191562,1748619110623,-420.0,0.00024109,2]
[363191563,1748619110632,-2098.6,0.00024109,2]
[363191564,1748619110642,-490.07,0.00024109,2]
[363191565,1748619110652,-420.0,0.00024109,2]
[363191566,1748619110663,-420.0,0.00024109,2]
[363191567,1748619110671,-770.69,0.00024109,2]
[363191568,1748619110680,-420.0,0.00024109,2]
[363191569,1748619110689,-890.15,0.00024109,2]
[363191570,1748619110699,-420.0,0.00024109,2]
[363191571,1748619110708,-420.86,0.00024109,2]
[363191572,1748619110718,-426.87,0.00024109,2]
[363191573,1748619110728,-420.0,0.00024109,2]
[363191574,1748619110737,-420.0,0.00024109,2]
[363191575,1748619110747,-424.91,0.00024109,2]
[363191576,1748619110756,-429.06,0.00024109,2]
[363191577,1748619110766,-425.84362319,0.00024109,2]
[363191578,1748619110775,-420.0,0.00024109,2]
[363191579,1748619110787,-420.0,0.00024109,2]
[363191580,1748619110797,-758.53,0.00024109,2]
[363191581,1748619110808,-420.0,0.00024109,2]
[363191582,1748619110818,-420.0,0.00024109,2]
[363191583,1748619110828,-772.94,0.00024109,2]
[363191584,1748619110838,-420.0,0.00024109,2]
[363191585,1748619110849,-420.0,0.00024109,2]
[363191586,1748619110858,-427.85,0.00024109,2]
[363191587,1748619110868,-420.0,0.00024109,2]
[363191588,1748619110878,-420.0,0.00024109,2]
[363191589,1748619110888,-456.87,0.00024109,2]
[363191590,1748619110898,-420.0,0.00024109,2]
[363191591,1748619110907,-420.0,0.00024109,2]
[363191592,1748619110916,-420.0,0.00024109,2]
[363191593,1748619110925,-420.0,0.00024109,2]
[363191594,1748619110935,-420.0,0.00024109,2]
[363191595,1748619110944,-422.57996311,0.00024109,2]
[363191596,1748619110954,-420.0,0.00024109,2]
[363191597,1748619110964,-420.0,0.00024109,2]
[363191598,1748619110974,-420.0,0.00024109,2]
[363191599,1748619110984,-420.0,0.00024109,2]
[363191600,1748619110993,-420.0,0.00024109,2]
[363191601,1748619111003,-777.89,0.00024109,2]
[363191602,1748619111012,-1819.65,0.00024109,2]
[363191603,1748619111022,-863.65,0.00024109,2]
[363191604,1748619111032,-420.0,0.00024109,2]
[363191605,1748619111042,-1212.65,0.00024109,2]
[363191606,1748619111052,-1175.81,0.00024109,2]
[363191607,1748619111061,-553.05,0.00024109,2]
[363191608,1748619111070,-796.08,0.00024109,2]
[363191609,1748619111080,-420.0,0.00024109,2]
[363191610,1748619111090,-523.03,0.00024109,2]
[363191611,1748619111099,-501.69,0.00024109,2]
[363191612,1748619111108,-1811.35,0.00024109,2]
[363191613,1748619111117,-420.0,0.00024109,2]
[363191614,1748619111126,-420.0,0.00024109,2]
[363191615,1748619111135,-822.17,0.00024109,2]
[363191616,1748619111145,-496.62,0.00024109,2]
[363191617,1748619111154,-641.0,0.00024109,2]
[363191618,1748619111164,-847.29,0.00024109,2]
[363191619,1748619111173,-420.0,0.00024109,2]
[363191620,1748619111183,-420.0,0.00024109,2]
[363191621,1748619111192,-1102.55,0.00024109,2]
[363191622,1748619111202,-443.43,0.00024109,2]
[363191623,1748619111211,-420.0,0.00024109,2]
[363191624,1748619111220,-443.13,0.00024109,2]
[363191625,1748619111229,-751.91,0.00024109,2]
[363191626,1748619111238,-420.0,0.00024109,2]
[363191627,1748619111248,-420.0,0.00024109,2]
[363191628,1748619111257,-420.0,0.00024109,2]
[363191629,1748619111268,-420.0,0.00024109,2]
[363191630,1748619111277,-420.0,0.00024109,2]
[363191631,1748619111289,-420.0,0.00024109,2]
[363191632,1748619111298,-420.0,0.00024109,2]
[363191633,1748619111307,-420.0,0.00024109,2]
[363191634,1748619111317,-420.0,0.00024109,2]
[363191635,1748619111326,-518.42,0.00024109,2]
[363191636,1748619111335,-420.0,0.00024109,2]
[363191637,1748619111344,-420.0,0.00024109,2]
[363191638,1748619111354,-1199.0,0.00024109,2]
[363191639,1748619111363,-420.0,0.00024109,2]
[363191640,1748619111373,-841.83,0.00024109,2]
[363191641,1748619111382,-1711.43,0.00024109,2]
[363191642,1748619111392,-508.53,0.00024109,2]
[363191643,1748619111401,-948.67,0.00024109,2]
[363191644,1748619111409,-420.0,0.00024109,2]
[363191645,1748619111418,-610.77,0.00024109,2]
[363191646,1748619111427,-420.0,0.00024109,2]
[363191647,1748619111436,-423.52,0.00024109,2]
[363191648,1748619111446,-2171.03,0.00024109,2]
[363191649,1748619111455,-420.0,0.00024109,2]
[363191650,1748619111465,-945.97,0.00024109,2]
[363191651,1748619111474,-572.48,0.00024109,2]
[363191652,1748619111483,-1319.71,0.00024109,2]
[363191653,1748619111492,-456.76,0.00024109,2]
[363191654,1748619111502,-1456.24,0.00024109,2]
[363191655,1748619111511,-636.09,0.00024109,2]
[363191656,1748619111521,-853.5,0.00024109,2]
[363191657,1748619111532,-743.92,0.00024109,2]
[363191658,1748619111541,-1258.56,0.00024109,2]
[363191659,1748619111550,-652.14,0.00024109,2]
[363191660,1748619111560,-420.0,0.00024109,2]
[363191661,1748619111569,-569.93,0.00024109,2]
[363191662,1748619111579,-1419.49,0.00024109,2]
[363191663,1748619111588,-584.74,0.00024109,2]
[363191664,1748619111597,-755.51,0.00024109,2]
[363191665,1748619111607,-582.04,0.00024109,2]
[363191666,1748619111616,-420.0,0.00024109,2]
[363191667,1748619111626,-420.0,0.00024109,2]
[363191668,1748619111635,-420.0,0.00024109,2]
[363191669,1748619111645,-781.6,0.00024109,2]
[363191670,1748619111655,-1041.01,0.00024109,2]
[363191671,1748619111665,-1369.52,0.00024109,2]
[363191672,1748619111674,-474.65,0.00024109,2]
[363191673,1748619111684,-463.6,0.00024109,2]
[363191674,1748619111694,-1379.11,0.00024109,2]
[363191675,1748619111703,-420.0,0.00024109,2]
[363191676,1748619111713,-420.0,0.00024109,2]
[363191677,1748619111723,-666.7,0.00024109,2]
[363191678,1748619111732,-741.8,0.00024109,2]
[363191679,1748619111744,-1319.43,0.00024109,2]
[363191680,1748619111754,-576.82,0.00024109,2]
[363191681,1748619111762,-693.89,0.00024109,2]
[363191682,1748619111770,-561.65,0.00024109,2]
[363191683,1748619111781,-1160.92,0.00024109,2]
[363191684,1748619111790,-472.93,0.00024109,2]
[363191685,1748619111803,-1207.82,0.00024109,2]
[363191686,1748619111812,-1166.17,0.00024109,2]
[363191687,1748619111821,-1168.26,0.00024109,2]
[363191688,1748619111830,-420.0,0.00024109,2]
[363191689,1748619111839,-420.0,0.00024109,2]
[363191690,1748619111849,-466.98,0.00024109,2]
[363191691,1748619111858,-784.43,0.00024109,2]
[363191692,1748619111867,-723.56,0.00024109,2]
[363191693,1748619111877,-1364.89,0.00024109,2]
[363191694,1748619111887,-801.75,0.00024109,2]
[363191695,1748619111896,-604.61,0.00024109,2]
[363191696,1748619111905,-635.16,0.00024109,2]
[363191697,1748619111914,-587.51,0.00024109,2]
[363191698,1748619111923,-1137.25,0.00024109,2]
[363191699,1748619111932,-786.55,0.00024109,2]
[363191700,1748619111941,-862.94,0.00024109,2]
[363191701,1748619111950,-420.0,0.00024109,2]
[363191702,1748619111959,-523.95,0.00024109,2]
[363191703,1748619111969,-1160.03,0.00024109,2]
[363191704,1748619111978,-673.65,0.00024109,2]
[363191705,1748619111987,-931.25,0.00024109,2]
[363191706,1748619111997,-420.0,0.00024109,2]
[363191707,1748619112006,-552.42,0.00024109,2]
[363191708,1748619112015,-459.7,0.00024109,2]
[363191709,1748619112024,-1724.07,0.00024109,2]
[363191710,1748619112035,-420.0,0.00024109,2]
[363191711,1748619112044,-600.48,0.00024109,2]
[363191712,1748619112054,-726.29,0.00024109,2]
[363191713,1748619112063,-472.86,0.00024109,2]
[363191714,1748619112072,-420.0,0.00024109,2]
[363191715,1748619112081,-1073.36,0.00024109,2]
[363191716,1748619112090,-832.22,0.00024109,2]
[363191717,1748619112099,-576.09,0.00024109,2]
[363191718,1748619112108,-1371.43,0.00024109,2]
[363191719,1748619112118,-1079.44,0.00024109,2]
[363191720,1748619112127,-538.33,0.00024109,2]
[363191721,1748619112137,-349.9489908,0.00024109,2]
[363191722,1748619112146,-971.8,0.00024109,2]
[363191723,1748619112155,-590.55,0.00024109,2]
[363191724,1748619112165,-476.32,0.00024109,2]
[363191725,1748619112174,-550.23,0.00024109,2]
[363191726,1748619112183,-523.75,0.00024109,2]
[363191727,1748619112193,-420.0,0.00024109,2]
[363191728,1748619112202,-2381.24,0.00024109,2]
[363191729,1748619112211,-420.0,0.00024109,2]
[363191730,1748619112221,-1073.24,0.00024109,2]
[363191731,1748619112230,-659.08,0.00024109,2]
[363191732,1748619112239,-420.0,0.00024109,2]
[363191733,1748619112248,-420.0,0.00024109,2]
[363191734,1748619112257,-535.46,0.00024109,2]
[363191735,1748619112267,-420.0,0.00024109,2]
[363191736,1748619112277,-569.05,0.00024109,2]
[363191737,1748619112288,-420.0,0.00024109,2]
[363191738,1748619112297,-808.94,0.00024109,2]
[363191739,1748619112306,-1940.81,0.00024109,2]
[363191740,1748619112315,-463.09,0.00024109,2]
[363191741,1748619112324,-627.54,0.00024109,2]
[363191742,1748619112333,-420.0,0.00024109,2]
[363191743,1748619112342,-1123.75,0.00024109,2]
[363191744,1748619112351,-539.2,0.00024109,2]
[363191745,1748619112361,-487.89,0.00024109,2]
[363191746,1748619112370,-420.0,0.00024109,2]
[363191747,1748619112379,-420.0,0.00024109,2]
[363191748,1748619112388,-1124.04,0.00024109,2]
[363191749,1748619112397,-553.55,0.00024109,2]
[363191750,1748619112407,-1448.39,0.00024109,2]
[363191751,1748619112416,-1053.3,0.00024109,2]
[363191752,1748619112426,-584.13,0.00024109,2]
[363191753,1748619112435,-514.5155126,0.00024109,2]
[363191754,1748619112445,-1192.82,0.00024109,2]
[363191755,1748619112455,-420.0,0.00024109,2]
[363191756,1748619112464,-613.48,0.00024109,2]
[363191757,1748619112474,-420.0,0.00024109,2]
[363191758,1748619112483,-491.19,0.00024109,2]
[363191759,1748619112492,-466.46,0.00024109,2]
[363191760,1748619112502,-561.99,0.00024109,2]
[363191761,1748619112512,-1678.06,0.00024109,2]
[363191762,1748619112522,-420.0,0.00024109,2]
[363191763,1748619112531,-420.0,0.00024109,2]
[363191764,1748619112541,-1400.08,0.00024109,2]
[363191765,1748619112551,-600.46,0.00024109,2]
[363191766,1748619112560,-626.74,0.00024109,2]
[363191767,1748619112570,-729.19,0.00024109,2]
[363191768,1748619112580,-420.0,0.00024109,2]
[363191769,1748619112590,-849.19,0.00024109,2]
[363191770,1748619112600,-1178.79,0.00024109,2]
[363191771,1748619112609,-1833.03,0.00024109,2]
[363191772,1748619112619,-558.24,0.00024109,2]
[363191773,1748619112628,-633.87,0.00024109,2]
[363191774,1748619112638,-420.0,0.00024109,2]
[363191775,1748619112648,-465.46,0.00024109,2]
[363191776,1748619112658,-1085.24,0.00024109,2]
[363191777,1748619112668,-420.0,0.00024109,2]
[363191778,1748619112677,-3634.58,0.00024109,2]
[363191779,1748619112687,-2016.38,0.00024109,2]
[363191780,1748619112697,-609.8,0.00024109,2]
[363191781,1748619112706,-420.0,0.00024109,2]
[363191782,1748619112716,-1168.36,0.00024109,2]
[363191783,1748619112726,-5361.86,0.00024109,2]
[363191784,1748619112736,-420.0,0.00024109,2]
[363191785,1748619112745,-2127.16,0.00024109,2]
[363191786,1748619112754,-1484.06,0.00024109,2]
[363191787,1748619112764,-420.0,0.00024109,2]
[363191788,1748619112774,-1109.67,0.00024109,2]
[363191789,1748619112784,-614.8,0.00024109,2]
[363191790,1748619112795,-575.02,0.00024109,2]
[363191791,1748619112807,-674.8,0.00024109,2]
[363191792,1748619112817,-562.44,0.00024109,2]
[363191793,1748619112827,-420.0,0.00024109,2]
[363191794,1748619112837,-1824.08,0.00024109,2]
[363191795,1748619112847,-420.0,0.00024109,2]
[363191796,1748619112856,-904.81,0.00024109,2]
[363191797,1748619112866,-490.58,0.00024109,2]
[363191798,1748619112876,-7075.98,0.00024109,2]
[363191799,1748619112887,-1096.87,0.00024109,2]
[363191800,1748619112897,-723.21,0.00024109,2]
[363191801,1748619112907,-420.0,0.00024109,2]
[363191802,1748619112917,-420.0,0.00024109,2]
[363191803,1748619112927,-1561.66,0.00024109,2]
[363191804,1748619112936,-9812.16,0.00024109,2]
[363191805,1748619112946,-420.0,0.00024109,2]
[363191806,1748619112955,-1075.43,0.00024109,2]
[363191807,1748619112964,-1429.73,0.00024109,2]
[363191808,1748619112974,-622.82,0.00024109,2]
[363191809,1748619112984,-915.42,0.00024109,2]
[363191810,1748619112993,-11863.32,0.00024109,2]
[363191811,1748619113003,-1946.94,0.00024109,2]
[363191812,1748619113012,-420.0,0.00024109,2]
[363191813,1748619113022,-594.91,0.00024109,2]
[363191814,1748619113032,-797.36,0.00024109,2]
[363191815,1748619113044,-1167.97,0.00024109,2]
[363191816,1748619113054,-5682.0,0.00024109,2]
[363191817,1748619113063,-524.77,0.00024109,2]
[363191818,1748619113073,-1550.77,0.00024109,2]
[363191819,1748619113083,-420.0,0.00024109,2]
[363191820,1748619113093,-974.63,0.00024109,2]
[363191821,1748619113103,-655.87,0.00024109,2]
[363191822,1748619113113,-600.66,0.00024109,2]
[363191823,1748619113122,-702.81,0.00024109,2]
[363191824,1748619113132,-1024.75,0.00024109,2]
[363191825,1748619113142,-609.69,0.00024109,2]
[363191826,1748619113151,-1076.37,0.00024109,2]
[363191827,1748619113161,-420.0,0.00024109,2]
[363191828,1748619113170,-464.14,0.00024109,2]
[363191829,1748619113180,-420.0,0.00024109,2]
[363191830,1748619113190,-1708.68,0.00024109,2]
[363191831,1748619113199,-476.72,0.00024109,2]
[363191832,1748619113209,-726.29,0.00024109,2]
[363191833,1748619113218,-1013.34,0.00024109,2]
[363191834,1748619113228,-850.36,0.00024109,2]
[363191835,1748619113238,-9498.11,0.00024109,2]
[363191836,1748619113248,-829.87,0.00024109,2]
[363191837,1748619113257,-997.73,0.00024109,2]
[363191838,1748619113267,-1568.21,0.00024109,2]
[363191839,1748619113276,-717.62,0.00024109,2]
[363191840,1748619113288,-862.79,0.00024109,2]
[363191841,1748619113298,-2137.81,0.00024109,2]
[363191842,1748619113307,-657.91,0.00024109,2]
[363191843,1748619113316,-985.32,0.00024109,2]
[363191844,1748619113327,-420.0,0.00024109,2]
[363191845,1748619113336,-420.0,0.00024109,2]
[363191846,1748619113346,-541.52,0.00024109,2]
[363191847,1748619113355,-1399.41,0.00024109,2]
[363191848,1748619113363,-1150.73,0.00024109,2]
[363191849,1748619113372,-420.0,0.00024109,2]
[363191850,1748619113382,-2296.95,0.00024109,2]
[363191851,1748619113392,-173.19316204,0.00024109,2]
[363191852,1748619113401,-682.72,0.00024109,2]
[363191853,1748619113411,-795.59,0.00024109,2]
[363191854,1748619113420,-575.16,0.00024109,2]
[363191855,1748619113429,-3116.89,0.00024109,2]
[363191856,1748619113439,-1061.77,0.00024109,2]
[363191857,1748619113448,-1233.85,0.00024109,2]
[363191858,1748619113458,-420.0,0.00024109,2]
[363191859,1748619113467,-11481.25,0.00024109,2]
[363191860,1748619113477,-426.85,0.00024109,2]
[363191861,1748619113486,-1096.82,0.00024109,2]
[363191862,1748619113496,-857.17,0.00024109,2]
[363191863,1748619113506,-1626.19,0.00024109,2]
[363191864,1748619113516,-420.0,0.00024109,2]
[363191865,1748619113526,-634.02,0.00024109,2]
[363191866,1748619113537,-1283.49,0.00024109,2]
[363191867,1748619113547,-1507.45,0.00024109,2]
[363191868,1748619113557,-532.67,0.00024109,2]
[363191869,1748619113568,-441.96,0.00024109,2]
[363191870,1748619113578,-3197.32,0.00024109,2]
[363191871,1748619113588,-1018.57,0.00024109,2]
[363191872,1748619113598,-1122.87,0.00024109,2]
[363191873,1748619113607,-2066.87,0.00024109,2]
[363191874,1748619113617,-489.48,0.00024109,2]
[363191875,1748619113627,-461.31,0.00024109,2]
[363191876,1748619113637,-429.62,0.00024109,2]
[363191877,1748619113647,-3670.01,0.00024109,2]
[363191878,1748619113656,-805.58,0.00024109,2]
[363191879,1748619113666,-1386.9,0.00024109,2]
[363191880,1748619113676,-894.1,0.00024109,2]
[363191881,1748619113685,-2960.24,0.00024109,2]
[363191882,1748619113695,-1963.11,0.00024109,2]
[363191883,1748619113705,-906.34,0.00024109,2]
[363191884,1748619113715,-7808.56,0.00024109,2]
[363191885,1748619113725,-1068.95,0.00024109,2]
[363191886,1748619113735,-975.57,0.00024109,2]
[363191887,1748619113745,-1446.02,0.00024109,2]
[363191888,1748619113754,-5878.54,0.00024109,2]
[363191889,1748619113764,-1309.89,0.00024109,2]
[363191890,1748619113774,-591.35,0.00024109,2]
[363191891,1748619113785,-4452.28,0.00024109,2]
[363191892,1748619113794,-8491.51,0.00024109,2]
[363191893,1748619113807,-982.46,0.00024109,2]
[363191894,1748619113817,-958.4,0.00024109,2]
[363191895,1748619113825,-139506.04,0.00024109,2]
[363191896,1748619113835,-1343.03,0.00024109,2]
[363191897,1748619113844,-1033.36,0.00024109,2]
[363191898,1748619113854,-657.44,0.00024109,2]
[363191899,1748619113864,-420.0,0.00024109,2]
[363191900,1748619113873,-453.46,0.00024109,2]
[363191901,1748619113883,-1032.71,0.00024109,2]
[363191902,1748619113892,-1623.73,0.00024109,2]
[363191903,1748619113902,-458.54,0.00024109,2]
[363191904,1748619113911,-3547.4,0.00024109,2]
[363191905,1748619113921,-982.85,0.00024109,2]
[363191906,1748619113931,-1005.97,0.00024109,2]
[363191907,1748619113940,-3804.58,0.00024109,2]
[363191908,1748619113950,-37354.79,0.00024109,2]
[363191909,1748619113959,-1623.36,0.00024109,2]
[363191910,1748619113969,-1215.02,0.00024109,2]
[363191911,1748619113978,-937.17,0.00024109,2]
[363191912,1748619113988,-753.84,0.00024109,2]
[363191913,1748619113997,-10069.56,0.00024109,2]
[363191914,1748619114007,-2424.56,0.00024109,2]
[363191915,1748619114016,-1684.99,0.00024109,2]
[363191916,1748619114026,-519.37,0.00024109,2]
[363191917,1748619114038,-7476.47,0.00024109,2]
[363191918,1748619114048,-628.41,0.00024109,2]
[363191919,1748619114058,-422.51,0.00024109,2]
[363191920,1748619114068,-868.93,0.00024109,2]
[363191921,1748619114078,-420.0,0.00024109,2]
[363191922,1748619114087,-1449.88,0.00024109,2]
[363191923,1748619114097,-14516.45,0.00024109,2]
[363191924,1748619114108,-4266.56,0.00024109,2]
[363191925,1748619114118,-830.49,0.00024109,2]
[363191926,1748619114128,-1548.49,0.00024109,2]
[363191927,1748619114139,-1978.38,0.00024109,2]
[363191928,1748619114149,-1884.76,0.00024109,2]
[363191929,1748619114159,-542.86,0.00024109,2]
[363191930,1748619114169,-593.44,0.00024109,2]
[363191931,1748619114179,-510.86,0.00024109,2]
[363191932,1748619114189,-420.0,0.00024109,2]
[363191933,1748619114199,-1709.24,0.00024109,2]
[363191934,1748619114209,-2758.03,0.00024109,2]
[363191935,1748619114219,-420.0,0.00024109,2]
[363191936,1748619114229,-29722.14,0.00024109,2]
[363191937,1748619114239,-881.72,0.00024109,2]
[363191938,1748619114249,-1169.42,0.00024109,2]
[363191939,1748619114259,-1406.27,0.00024109,2]
[363191940,1748619114269,-826.36,0.00024109,2]
[363191941,1748619114279,-1544.23,0.00024109,2]
[363191942,1748619114291,-1175.33,0.00024109,2]
[363191943,1748619114301,-3295.64,0.00024109,2]
[363191944,1748619114312,-1761.11,0.00024109,2]
[363191945,1748619114322,-660.71,0.00024109,2]
[363191946,1748619114332,-3573.53,0.00024109,2]
[363191947,1748619114342,-1034.84,0.00024109,2]
[363191948,1748619114352,-738.85,0.00024109,2]
[363191949,1748619114362,-1151.03,0.00024109,2]
[363191950,1748619114372,-9251.83,0.00024109,2]
[363191951,1748619114382,-772.03,0.00024109,2]
[363191952,1748619114392,-420.0,0.00024109,2]
[363191953,1748619114403,-490.63,0.00024109,2]
[363191954,1748619114413,-720.83,0.00024109,2]
[363191955,1748619114423,-1360.32,0.00024109,2]
[363191956,1748619114433,-723.88,0.00024109,2]
[363191957,1748619114443,-567.24,0.00024109,2]
[363191958,1748619114453,-2486.32,0.00024109,2]
[363191959,1748619114463,-4470.51,0.00024109,2]
[363191960,1748619114472,-1446.13,0.00024109,2]
[363191961,1748619114483,-2304.2,0.00024109,2]
[363191962,1748619114493,-1389.12,0.00024109,2]
[363191963,1748619114503,-1054.71,0.00024109,2]
[363191964,1748619114514,-990.01,0.00024109,2]
[363191965,1748619114524,-1680.37,0.00024109,2]
[363191966,1748619114535,-521.76,0.00024109,2]
[363191967,1748619114545,-4095.54,0.00024109,2]
[363191968,1748619114555,-1486.66,0.00024109,2]
[363191969,1748619114565,-1336.51,0.00024109,2]
[363191970,1748619114576,-1487.37,0.00024109,2]
[363191971,1748619114586,-2771.35,0.00024109,2]
[363191972,1748619114596,-4189.49,0.00024109,2]
[363191973,1748619114606,-629.45,0.00024109,2]
[363191974,1748619114616,-2997.14,0.00024109,2]
[363191975,1748619114627,-1125.7,0.00024109,2]
[363191976,1748619114637,-614.16,0.00024109,2]
[363191977,1748619114647,-1026.77,0.00024109,2]
[363191978,1748619114657,-7561.37,0.00024109,2]
[363191979,1748619114667,-420.0,0.00024109,2]
[363191980,1748619114678,-1258.89,0.00024109,2]
[363191981,1748619114688,-1075.29,0.00024109,2]
[363191982,1748619114699,-760.57,0.00024109,2]
[363191983,1748619114709,-3180.63,0.00024109,2]
[363191984,1748619114719,-1927.78,0.00024109,2]
[363191985,1748619114728,-1656.75,0.00024109,2]
[363191986,1748619114738,-420.0,0.00024109,2]
[363191987,1748619114748,-641.68,0.00024109,2]
[363191988,1748619114759,-1318.91,0.00024109,2]
[363191989,1748619114769,-1139.98,0.00024109,2]
[363191990,1748619114780,-798.56,0.00024109,2]
[363191991,1748619114793,-1082.24,0.00024109,2]
[363191992,1748619114806,-718.05,0.00024109,2]
[363191993,1748619114817,-1074.24,0.00024109,2]
[363191994,1748619114827,-3419.97,0.00024109,2]
[363191995,1748619114837,-1239.27,0.00024109,2]
[363191996,1748619114850,-671.13,0.00024109,2]
[363191997,1748619114860,-1848.95,0.00024109,2]
[363191998,1748619114870,-2486.27,0.00024109,2]
[363191999,1748619114881,-420.0,0.00024109,2]
[363192000,1748619114892,-420.0,0.00024109,2]
[363192001,1748619114902,-1822.33,0.00024109,2]
[363192002,1748619114912,-4083.38,0.00024109,2]
[363192003,1748619114922,-1501.86,0.00024109,2]
[363192004,1748619114932,-4025.56,0.00024109,2]
[363192005,1748619114943,-1358.16,0.00024109,2]
[363192006,1748619114953,-4868.11,0.00024109,2]
[363192007,1748619114963,-2713.7,0.00024109,2]
[363192008,1748619114973,-489.31,0.00024109,2]
[363192009,1748619114983,-742.91,0.00024109,2]
[363192010,1748619114994,-703.73,0.00024109,2]
[363192011,1748619115004,-802.33,0.00024109,2]
[363192012,1748619115015,-937.93,0.00024109,2]
[363192013,1748619115025,-2531.82,0.00024109,2]
[363192014,1748619115036,-420.0,0.00024109,2]
[363192015,1748619115046,-420.0,0.00024109,2]
[363192016,1748619115056,-830.27,0.00024109,2]
[363192017,1748619115066,-420.0,0.00024109,2]
[363192018,1748619115076,-7051.39,0.00024109,2]
[363192019,1748619115086,-622.77,0.00024109,2]
[363192020,1748619115096,-1538.8,0.00024109,2]
[363192021,1748619115106,-961.82,0.00024109,2]
[363192022,1748619115116,-19030.44,0.00024109,2]
[363192023,1748619115127,-1325.56,0.00024109,2]
[363192024,1748619115137,-2716.47,0.00024109,2]
[363192025,1748619115147,-420.0,0.00024109,2]
[363192026,1748619115157,-1264.47,0.00024109,2]
[363192027,1748619115167,-420.0,0.00024109,2]
[363192028,1748619115178,-702.43,0.00024109,2]
[363192029,1748619115188,-735.86,0.00024109,2]
[363192030,1748619115199,-760.22,0.00024109,2]